bitfinex/quotes_BTCUSD_20250123
["timestamp","ask_amount","ask_price","bid_price","bid_amount"]
[1737616200772,0.00010049,102030.0,102020.0,0.71314967]
[1737616205691,0.00010049,102030.0,102020.0,0.71294344]
[1737616206791,0.00010049,102030.0,102020.0,0.61176844]
[1737616206980,0.00010049,102030.0,102020.0,1.15594644]
[1737616207837,0.00010049,102030.0,102020.0,0.53915477]
[1737616208039,0.00010049,102030.0,102020.0,0.43305477]
[1737616208400,6.049e-05,102030.0,102020.0,0.45605477]
[1737616208837,6.049e-05,102030.0,102020.0,0.52866844]
[1737616211835,6.049e-05,102030.0,102020.0,0.60546844]
[1737616212301,6.049e-05,102030.0,102020.0,0.63601064]
[1737616212633,6.049e-05,102030.0,102020.0,0.64394968]
[1737616213076,6.049e-05,102030.0,102020.0,0.77792968]
[1737616213678,6.049e-05,102030.0,102020.0,0.89574335]
[1737616214107,0.07609925,102060.0,102020.0,0.79772435]
[1737616214320,0.07609925,102060.0,102050.0,0.44095196]
[1737616214526,0.00029925,102060.0,102050.0,0.44095196]
[1737616214963,0.00029925,102060.0,102050.0,0.51356563]
[1737616215175,0.00029925,102060.0,102050.0,0.54410147]
[1737616215379,0.00029925,102060.0,102050.0,0.62090147]
[1737616215495,0.00039687,102060.0,102050.0,0.62090147]
[1737616215699,0.00039687,102060.0,102050.0,2.17847047]
[1737616216350,0.21216434,102090.0,102080.0,0.097962]
[1737616216549,0.31011634,102090.0,102080.0,0.19530929]
[1737616216764,0.21216434,102090.0,102080.0,0.19530929]
[1737616217170,0.31011634,102090.0,102080.0,0.19530929]
[1737616219263,0.31011634,102090.0,102080.0,0.34530929]
[1737616219479,0.21216434,102090.0,102080.0,0.34530929]
[1737616220449,0.1253,102090.0,102080.0,0.34530929]
[1737616222300,0.223252,102090.0,102080.0,0.34530929]
[1737616222629,0.1253,102090.0,102080.0,0.34530929]
[1737616224485,0.1254424,102090.0,102080.0,0.34530929]
[1737616226361,0.1254424,102090.0,102080.0,0.36830929]
[1737616227878,0.0496424,102090.0,102080.0,0.36830929]
[1737616228058,0.0001424,102090.0,102080.0,0.47881144]
[1737616229102,0.0001424,102090.0,102080.0,0.91506444]
[1737616229299,0.0001424,102090.0,102080.0,0.96246444]
[1737616229500,0.0001424,102090.0,102080.0,0.97010444]
[1737616234297,0.0001424,102090.0,102080.0,0.96246444]
[1737616234498,0.0001424,102090.0,102080.0,0.97014444]
[1737616239829,0.0001424,102090.0,102080.0,1.00460007]
[1737616241603,4e-07,102090.0,102080.0,1.07707896]
[1737616241851,0.00036136,102100.0,102090.0,2.330906]
[1737616242057,0.00036136,102100.0,102090.0,2.57321107]
[1737616242261,0.00036136,102100.0,102090.0,2.61951107]
[1737616242849,0.00029904,102110.0,102100.0,0.49810078]
[1737616243150,0.00044998,102110.0,102100.0,2.21154607]
[1737616243820,0.00044998,102110.0,102100.0,0.56087476]
[1737616244008,0.00044998,102110.0,102100.0,2.31278276]
[1737616244239,0.00044998,102110.0,102100.0,2.20706176]
[1737616245022,0.00044998,102110.0,102100.0,2.19178776]
[1737616245175,0.00044998,102110.0,102100.0,1.59954576]
[1737616245386,0.00044998,102110.0,102100.0,0.37597029]
[1737616245608,0.04634998,102110.0,102100.0,0.48635476]
[1737616245814,0.04634998,102110.0,102100.0,0.47867476]
[1737616246386,0.04634998,102110.0,102100.0,0.49820807]
[1737616246794,0.04634998,102110.0,102100.0,0.50802564]
[1737616247207,0.00044998,102110.0,102100.0,0.50802564]
[1737616251327,0.00044998,102110.0,102100.0,0.39764117]
[1737616252955,0.00044998,102110.0,102100.0,0.37464117]
[1737616253155,0.05894998,102110.0,102100.0,0.37464117]
[1737616254302,0.15688298,102110.0,102100.0,0.37464117]
[1737616254511,0.31656745,102110.0,102100.0,0.10716486]
[1737616254686,0.147252,102090.0,102080.0,0.097959]
[1737616254832,0.147252,102090.0,102080.0,0.34530629]
[1737616255745,0.0493,102090.0,102080.0,0.3646756]
[1737616255945,0.0493,102090.0,102080.0,0.47506007]
[1737616256250,0.0785,102100.0,102090.0,0.023]
[1737616256472,0.0785,102100.0,102090.0,0.21829929]
[1737616256875,0.0785,102100.0,102090.0,0.36829929]
[1737616257127,0.1278,102110.0,102090.0,0.27034729]
[1737616257329,0.1278,102110.0,102100.0,0.19529029]
[1737616258253,0.225733,102110.0,102100.0,0.19529029]
[1737616258453,0.225733,102110.0,102100.0,0.09734729]
[1737616258454,0.33611747,102110.0,102100.0,0.09734729]
[1737616258720,0.40611747,102110.0,102100.0,0.09734729]
[1737616259792,0.40611747,102110.0,102100.0,0.09764612]
[1737616260027,0.40625977,102110.0,102100.0,0.09764612]
[1737616260407,0.35625977,102110.0,102100.0,0.09764612]
[1737616260605,0.35625977,102110.0,102100.0,0.00029883]
[1737616260807,0.33625977,102110.0,102100.0,0.00029883]
[1737616261239,0.38625977,102110.0,102100.0,0.00029883]
[1737616261369,0.33625977,102110.0,102100.0,0.00029883]
[1737616261772,0.35625977,102110.0,102100.0,0.00029883]
[1737616262403,0.40625977,102110.0,102100.0,0.00029883]
[1737616262598,0.38625977,102110.0,102100.0,0.00029883]
[1737616262811,0.40625977,102110.0,102100.0,0.00029883]
[1737616264273,0.35625977,102110.0,102100.0,0.00029883]
[1737616264475,0.40625977,102110.0,102100.0,0.00029883]
[1737616264656,0.65625977,102110.0,102100.0,0.00029883]
[1737616265219,0.60625977,102110.0,102100.0,0.00029883]
[1737616265632,0.65625977,102110.0,102100.0,0.00029883]
[1737616267469,0.60625977,102110.0,102100.0,0.00029883]
[1737616267896,0.4758753,102110.0,102100.0,0.19558912]
[1737616268398,0.3779423,102110.0,102100.0,0.19558912]
[1737616268550,0.1279423,102110.0,102100.0,0.19558912]
[1737616268757,0.0494423,102110.0,102100.0,0.19558912]
[1737616269281,0.0494023,102110.0,102100.0,0.19558912]
[1737616269484,0.0494023,102110.0,102100.0,0.19656838]
[1737616269904,0.0001423,102110.0,102100.0,0.30246838]
[1737616270113,0.0001423,102110.0,102100.0,0.30148912]
[1737616270524,0.0001423,102110.0,102100.0,0.45148912]
[1737616272324,0.0001423,102110.0,102100.0,0.56187359]
[1737616272494,0.0001423,102110.0,102100.0,1.93993759]
[1737616272703,0.0001423,102110.0,102100.0,1.9590342]
[1737616272886,0.0001423,102110.0,102100.0,1.5400652]
[1737616273768,0.0001423,102110.0,102100.0,1.5875652]
[1737616274780,0.0001423,102110.0,102100.0,1.61801859]
[1737616276118,0.0001423,102110.0,102100.0,1.62766102]
[1737616277511,0.00011747,102120.0,102110.0,0.348133]
[1737616277746,0.00011747,102120.0,102110.0,2.95070515]
[1737616277912,0.00011747,102120.0,102110.0,2.79541215]
[1737616278513,0.00029946,102140.0,102130.0,0.120914]
[1737616278725,0.00029946,102140.0,102130.0,1.74589963]
[1737616278902,0.00029946,102140.0,102130.0,1.74492076]
[1737616279477,0.00029946,102140.0,102130.0,1.67200276]
[1737616279690,0.00029946,102140.0,102130.0,1.54011176]
[1737616279882,0.00029946,102140.0,102130.0,1.16531376]
[1737616280110,0.00029946,102140.0,102130.0,1.11933176]
[1737616280425,0.00029946,102140.0,102130.0,0.92620376]
[1737616280896,0.00029946,102140.0,102130.0,0.86382576]
[1737616282666,0.00029946,102140.0,102130.0,0.87378719]
[1737616282876,0.00029946,102140.0,102130.0,0.95118719]
[1737616283085,0.00029946,102140.0,102130.0,0.99878719]
[1737616283295,0.00029946,102140.0,102130.0,0.94524319]
[1737616283514,0.00029946,102140.0,102130.0,0.91108819]
[1737616284631,0.00029946,102140.0,102130.0,0.88808819]
[1737616284951,0.00029946,102140.0,102130.0,0.89668819]
[1737616285567,0.00029946,102140.0,102130.0,0.91642452]
[1737616286819,0.00029946,102140.0,102130.0,0.93942452]
[1737616287999,0.00029946,102140.0,102130.0,0.49194352]
[1737616288194,0.00029946,102140.0,102130.0,2.71698352]
[1737616288413,0.00029946,102140.0,102130.0,2.66313252]
[1737616288614,0.00029946,102140.0,102130.0,2.52313252]
[1737616288818,0.00029946,102140.0,102130.0,2.50713252]
[1737616289116,0.00029946,102140.0,102130.0,2.34068752]
[1737616291633,0.00029946,102140.0,102130.0,2.33208752]
[1737616291839,0.00029946,102140.0,102130.0,2.34132752]
[1737616293059,0.00029946,102140.0,102130.0,2.38044452]
[1737616293395,0.00029946,102140.0,102130.0,2.53044452]
[1737616294299,0.00029946,102140.0,102130.0,2.52120452]
[1737616294611,0.00029946,102140.0,102130.0,2.53044452]
[1737616295023,0.00029946,102140.0,102130.0,2.35339152]
[1737616295559,0.00029946,102140.0,102130.0,2.35369035]
[1737616295957,0.28792636,102150.0,102130.0,2.21665935]
[1737616296160,0.28807725,102150.0,102140.0,1.69325376]
[1737616296382,0.26849825,102150.0,102140.0,2.05613823]
[1737616296765,0.26849825,102150.0,102140.0,1.94575376]
[1737616300114,0.26849825,102150.0,102140.0,1.76497876]
[1737616300252,0.26849825,102150.0,102140.0,1.66835076]
[1737616300628,0.26849825,102150.0,102140.0,1.23790376]
[1737616300773,0.26849825,102150.0,102140.0,1.07365776]
[1737616300974,0.26849825,102150.0,102140.0,1.08289776]
[1737616301179,0.26849825,102150.0,102140.0,1.16239776]
[1737616301558,0.26849825,102150.0,102140.0,1.18539776]
[1737616301680,0.13255902,102150.0,102140.0,1.29578223]
[1737616302073,0.11298002,102150.0,102140.0,1.29578223]
[1737616302324,0.02701622,102150.0,102140.0,1.29578223]
[1737616302526,0.56989733,102160.0,102150.0,0.200395]
[1737616302709,0.56989733,102160.0,102150.0,2.49857891]
[1737616302909,0.56989733,102160.0,102150.0,2.49760023]
[1737616304281,0.47201233,102160.0,102150.0,2.69700023]
[1737616304464,0.43631233,102160.0,102150.0,2.74930374]
[1737616304665,0.43631233,102160.0,102150.0,2.71893538]
[1737616305042,0.37450061,102160.0,102150.0,2.71893538]
[1737616305245,0.33534661,102160.0,102150.0,2.74931121]
[1737616305628,0.22306676,102160.0,102150.0,2.86981121]
[1737616305989,0.01345628,102160.0,102150.0,2.64503988]
[1737616306141,0.57643563,102170.0,102160.0,0.44343482]
[1737616306142,0.45601691,102170.0,102160.0,0.44343482]
[1737616306345,0.40501691,102170.0,102160.0,2.85520788]
[1737616307169,0.40501691,102170.0,102160.0,2.72332299]
[1737616307170,0.30714191,102170.0,102160.0,2.72332299]
[1737616307371,0.24672444,102170.0,102160.0,2.83385633]
[1737616307551,0.23072444,102170.0,102160.0,2.85600573]
[1737616307955,0.16272444,102170.0,102160.0,2.85600573]
[1737616308157,0.48459386,102180.0,102170.0,0.4252537]
[1737616308358,0.48459386,102180.0,102170.0,3.25554593]
[1737616308564,0.48459386,102180.0,102170.0,3.30806905]
[1737616308761,0.46259386,102180.0,102170.0,3.30806905]
[1737616309333,0.36452954,102180.0,102170.0,3.28591965]
[1737616309910,0.36452954,102180.0,102170.0,3.40641965]
[1737616310136,0.05439174,102180.0,102170.0,3.40641965]
[1737616310342,0.04839174,102180.0,102170.0,3.42856905]
[1737616311100,0.02881874,102180.0,102170.0,3.42856905]
[1737616311313,7.4e-07,102180.0,102170.0,3.42856905]
[1737616311555,0.53720545,102190.0,102180.0,4.045993]
[1737616311758,0.52170672,102190.0,102180.0,4.08736288]
[1737616312003,0.52170672,102190.0,102180.0,3.99892705]
[1737616312259,0.52170672,102190.0,102180.0,3.23472505]
[1737616312516,0.16382698,102190.0,102180.0,3.3125396]
[1737616312738,0.11583398,102190.0,102180.0,3.334689]
[1737616313243,0.05712698,102190.0,102180.0,3.334689]
[1737616313745,0.47418209,102200.0,102190.0,0.023]
[1737616313975,0.47418209,102200.0,102190.0,4.76434106]
[1737616314212,0.37633709,102200.0,102190.0,4.83442833]
[1737616314466,0.37633709,102200.0,102190.0,4.54390356]
[1737616314713,0.18762896,102200.0,102190.0,4.39227056]
[1737616314960,0.13350372,102200.0,102190.0,4.05385156]
[1737616315212,0.07479972,102200.0,102190.0,3.87924356]
[1737616315453,0.03566372,102200.0,102190.0,3.81842656]
[1737616315758,0.03566372,102200.0,102190.0,3.78267256]
[1737616315990,0.03566372,102200.0,102190.0,3.73081656]
[1737616316220,7.2e-07,102200.0,102190.0,3.48709256]
[1737616316462,7.2e-07,102200.0,102190.0,0.89580656]
[1737616316710,7.2e-07,102200.0,102190.0,1.01630656]
[1737616316946,7.2e-07,102200.0,102190.0,1.02782656]
[1737616317683,0.57639656,102210.0,102200.0,3.58892647]
[1737616317922,0.57639656,102210.0,102200.0,3.73848854]
[1737616318174,0.57639656,102210.0,102200.0,0.61029354]
[1737616318422,0.51769256,102210.0,102200.0,4.85223454]
[1737616318659,0.49812456,102210.0,102200.0,4.85223454]
[1737616318865,0.47855656,102210.0,102200.0,4.85223454]
[1737616319459,0.44097741,102210.0,102200.0,4.85223454]
[1737616319624,0.36270541,102210.0,102200.0,4.85223454]
[1737616320004,0.34313741,102210.0,102200.0,3.98074254]
[1737616320732,0.32356941,102210.0,102200.0,3.98074254]
[1737616320935,0.26486541,102210.0,102200.0,3.96510483]
[1737616321161,0.24529741,102210.0,102200.0,3.99335355]
[1737616321363,0.22572941,102210.0,102200.0,3.65292355]
[1737616321564,0.18659341,102210.0,102200.0,3.65292355]
[1737616321771,0.14745741,102210.0,102200.0,3.31848655]
[1737616322220,0.14745741,102210.0,102200.0,2.97194938]
[1737616322388,0.14745741,102210.0,102200.0,2.68744871]
[1737616322743,0.14745741,102210.0,102200.0,2.69744239]
[1737616322954,0.06918541,102210.0,102200.0,2.69744239]
[1737616323158,4.1e-07,102210.0,102200.0,2.69744239]
[1737616323388,4.1e-07,102210.0,102200.0,0.65423839]
[1737616324179,4.1e-07,102210.0,102200.0,0.71240808]
[1737616324382,4.1e-07,102210.0,102200.0,0.74811944]
[1737616324718,4.1e-07,102210.0,102200.0,0.75959944]
[1737616325451,4.1e-07,102210.0,102200.0,0.73135072]
[1737616325654,4.1e-07,102210.0,102200.0,0.72113834]
[1737616325907,4.1e-07,102210.0,102200.0,0.73261834]
[1737616326048,4.1e-07,102210.0,102200.0,0.75959944]
[1737616327385,4.1e-07,102210.0,102200.0,0.65311834]
[1737616327588,4.1e-07,102210.0,102200.0,0.62486962]
[1737616327774,4.1e-07,102210.0,102200.0,0.65311834]
[1737616328394,4.1e-07,102210.0,102200.0,0.68009944]
[1737616328951,4.1e-07,102210.0,102200.0,0.62486962]
[1737616329155,4.1e-07,102210.0,102200.0,0.68009944]
[1737616330078,0.57639583,102220.0,102210.0,2.03406]
[1737616330273,0.57639583,102220.0,102210.0,2.08228395]
[1737616330704,0.57639583,102220.0,102210.0,1.93068395]
[1737616330895,0.57639583,102220.0,102210.0,1.24309895]
[1737616331102,0.65669583,102220.0,102210.0,1.07574695]
[1737616331239,0.65669583,102220.0,102210.0,0.93374923]
[1737616331446,0.65669583,102220.0,102210.0,0.96199795]
[1737616332184,0.65669583,102220.0,102210.0,0.97347795]
[1737616332933,0.70629583,102220.0,102210.0,0.30556876]
[1737616333679,0.70629583,102220.0,102210.0,0.45556876]
[1737616334085,0.70629583,102220.0,102210.0,0.66804876]
[1737616334286,0.70629583,102220.0,102210.0,0.64251676]
[1737616336693,0.70629583,102220.0,102210.0,0.61300476]
[1737616337027,0.70629583,102220.0,102210.0,0.60295376]
[1737616337405,0.70629583,102220.0,102210.0,0.57325376]
[1737616338593,0.70629583,102220.0,102210.0,0.24734729]
[1737616338788,0.70629583,102220.0,102210.0,0.34518429]
[1737616339167,0.70629583,102220.0,102210.0,0.24734729]
[1737616339293,0.70629583,102220.0,102210.0,0.34518429]
[1737616339489,0.70629583,102220.0,102210.0,0.19518429]
[1737616343124,0.70629583,102220.0,102210.0,0.09764654]
[1737616343336,0.80412383,102220.0,102210.0,0.09764654]
[1737616343501,0.82412383,102220.0,102210.0,0.09764654]
[1737616343704,0.9145083,102220.0,102210.0,0.09764654]
[1737616344092,0.80412383,102220.0,102210.0,0.09764654]
[1737616345227,0.70629583,102220.0,102210.0,0.20803101]
[1737616345546,0.70629583,102220.0,102210.0,0.30684631]
[1737616345748,0.70629583,102220.0,102210.0,0.45586801]
[1737616346013,0.70629583,102220.0,102210.0,0.57026601]
[1737616347499,0.70629583,102220.0,102210.0,0.62105401]
[1737616347915,0.62599583,102220.0,102210.0,0.62105401]
[1737616348227,0.62599583,102220.0,102210.0,0.65146323]
[1737616348796,0.62599583,102220.0,102210.0,0.66145834]
[1737616348998,0.62599583,102220.0,102210.0,0.68132654]
[1737616349976,0.62599583,102220.0,102210.0,0.65091732]
[1737616350202,0.57639583,102220.0,102210.0,0.68132927]
[1737616351114,0.57639583,102220.0,102210.0,0.81471374]
[1737616352050,0.3913035,102220.0,102210.0,0.93931374]
[1737616352228,0.10490033,102220.0,102210.0,0.96756246]
[1737616352441,0.56642993,102230.0,102220.0,0.270828]
[1737616352687,0.50544568,102230.0,102220.0,3.32895618]
[1737616352894,0.50544568,102230.0,102220.0,3.25289118]
[1737616353106,0.44675368,102230.0,102220.0,3.25289118]
[1737616353319,0.21391952,102230.0,102220.0,3.35289118]
[1737616353494,0.19470018,102230.0,102220.0,3.35289118]
[1737616354077,0.17513818,102230.0,102220.0,3.35289118]
[1737616354453,0.02936018,102230.0,102220.0,3.35289118]
[1737616354988,0.54681056,102240.0,102220.0,3.25506318]
[1737616355186,0.50783733,102240.0,102230.0,4.86451961]
[1737616355390,0.48800458,102240.0,102230.0,4.80119371]
[1737616355596,0.47384651,102240.0,102230.0,4.48445271]
[1737616355819,0.47006033,102240.0,102230.0,4.48445271]
[1737616356034,0.45040943,102240.0,102230.0,4.48445271]
[1737616356245,0.33316143,102240.0,102230.0,4.42546918]
[1737616356483,0.27634353,102240.0,102230.0,4.12216718]
[1737616356662,0.25104353,102240.0,102230.0,4.12216718]
[1737616357033,0.23148353,102240.0,102230.0,4.12216718]
[1737616357260,0.13480353,102240.0,102230.0,4.12216718]
[1737616357469,0.10754353,102240.0,102230.0,3.95916218]
[1737616357984,0.10754353,102240.0,102230.0,3.41265218]
[1737616358129,0.04885753,102240.0,102230.0,3.29447118]
[1737616358330,0.00973353,102240.0,102230.0,3.29447118]
[1737616358529,0.00973353,102240.0,102230.0,3.07481118]
[1737616358730,0.00973353,102240.0,102230.0,3.00815018]
[1737616359132,5.3e-07,102240.0,102230.0,3.00815018]
[1737616359377,5.3e-07,102240.0,102230.0,0.80586618]
[1737616359769,5.3e-07,102240.0,102230.0,0.82508448]
[1737616361280,5.3e-07,102240.0,102230.0,0.72508448]
[1737616363356,0.38384513,102250.0,102240.0,2.492776]
[1737616363558,0.38384513,102250.0,102240.0,2.81089223]
[1737616363784,0.34646513,102250.0,102240.0,2.92114614]
[1737616363986,0.54360338,102260.0,102240.0,2.92333714]
[1737616364195,0.49442938,102260.0,102250.0,3.71738089]
[1737616364395,0.44755038,102260.0,102250.0,2.88383414]
[1737616364697,0.44755038,102260.0,102250.0,2.73040423]
[1737616364944,0.44755038,102260.0,102250.0,2.39643823]
[1737616365144,0.42799238,102260.0,102250.0,2.39643823]
[1737616365339,0.34976038,102260.0,102250.0,2.32556323]
[1737616365944,0.33020238,102260.0,102250.0,2.32556323]
[1737616366175,0.25197038,102260.0,102250.0,2.32556323]
[1737616367566,0.19329638,102260.0,102250.0,2.32430615]
[1737616367704,0.15418038,102260.0,102250.0,2.32430615]
[1737616369020,0.11518038,102260.0,102250.0,2.32430615]
[1737616369220,0.11518038,102260.0,102250.0,2.34393065]
[1737616369824,0.11518038,102260.0,102250.0,2.35391232]
[1737616370477,0.09618038,102260.0,102250.0,2.35391232]
[1737616371605,0.06918038,102260.0,102250.0,2.35391232]
[1737616373019,0.06918038,102260.0,102250.0,2.35338301]
[1737616373840,0.06918038,102260.0,102250.0,2.40376601]
[1737616376895,0.06918038,102260.0,102250.0,1.84633554]
[1737616377108,0.06918038,102260.0,102250.0,0.53373354]
[1737616377316,0.06918038,102260.0,102250.0,1.58188954]
[1737616377835,0.06918038,102260.0,102250.0,1.60488954]
[1737616378515,0.06918038,102260.0,102250.0,1.60518858]
[1737616381259,0.06918038,102260.0,102250.0,1.63549536]
[1737616388548,0.06918038,102260.0,102250.0,1.62417536]
[1737616388705,0.06918038,102260.0,102250.0,1.63597536]
[1737616390453,0.06918038,102260.0,102250.0,1.62417536]
[1737616390750,0.06914038,102260.0,102250.0,1.63597536]
[1737616394659,0.06914038,102260.0,102250.0,0.58781936]
[1737616394832,0.06914038,102260.0,102250.0,2.29042636]
[1737616395260,0.06914038,102260.0,102250.0,2.27862636]
[1737616395465,0.06914038,102260.0,102250.0,2.29042636]
[1737616397222,0.06914038,102260.0,102250.0,2.20816736]
[1737616398604,0.11874038,102260.0,102250.0,1.90089636]
[1737616401553,0.07624038,102260.0,102250.0,1.90089636]
[1737616401771,0.07624038,102260.0,102250.0,1.54339536]
[1737616401990,0.15764038,102260.0,102250.0,0.93180336]
[1737616403945,0.15764038,102260.0,102250.0,0.89274036]
[1737616404740,0.15764038,102260.0,102250.0,0.26537189]
[1737616404953,0.15764038,102260.0,102250.0,0.98056236]
[1737616405363,0.15764038,102260.0,102250.0,1.06210536]
[1737616405784,0.15764038,102260.0,102250.0,0.69260236]
[1737616407179,0.15764038,102260.0,102250.0,0.68080236]
[1737616412267,0.15764038,102260.0,102250.0,1.42717936]
[1737616412988,0.15764038,102260.0,102250.0,1.33204736]
[1737616413186,0.15764038,102260.0,102250.0,0.73006936]
[1737616417672,0.50185974,102270.0,102260.0,0.15]
[1737616417886,0.30367209,102270.0,102260.0,3.0959647]
[1737616418086,0.08466507,102270.0,102260.0,3.14248701]
[1737616418289,0.03255307,102270.0,102260.0,3.14248701]
[1737616419179,7e-08,102270.0,102260.0,3.14248701]
[1737616419413,7e-08,102270.0,102260.0,0.74861201]
[1737616419615,0.57609645,102280.0,102270.0,2.204699]
[1737616419773,0.57624716,102280.0,102270.0,2.55312201]
[1737616420136,0.57624716,102280.0,102270.0,2.53527701]
[1737616420362,0.57624716,102280.0,102270.0,2.40443001]
[1737616420769,0.65434716,102280.0,102270.0,1.35329154]
[1737616421216,0.65434716,102280.0,102270.0,1.21332554]
[1737616421582,0.65434716,102280.0,102270.0,1.17623854]
[1737616421920,0.65434716,102280.0,102270.0,1.29830301]
[1737616422267,0.62364716,102280.0,102270.0,1.15323854]
[1737616422399,0.62364716,102280.0,102270.0,0.91575154]
[1737616422599,0.62364716,102280.0,102270.0,1.03379725]
[1737616423109,0.57624716,102280.0,102270.0,1.03379725]
[1737616423309,0.57624716,102280.0,102270.0,1.02211725]
[1737616423511,0.57624716,102280.0,102270.0,1.03379725]
[1737616424112,0.57638956,102280.0,102270.0,1.05331166]
[1737616425084,0.57638956,102280.0,102270.0,0.66019666]
[1737616425299,0.57638956,102280.0,102270.0,1.96304266]
[1737616425498,0.57638956,102280.0,102270.0,1.65726266]
[1737616426923,0.57638956,102280.0,102270.0,1.22904419]
[1737616427088,0.57638956,102280.0,102270.0,1.02430319]
[1737616427773,0.57638956,102280.0,102270.0,1.13468766]
[1737616429109,0.57638956,102280.0,102270.0,1.17375066]
[1737616433051,0.57638956,102280.0,102270.0,1.17323066]
[1737616434369,0.57638956,102280.0,102270.0,1.16207066]
[1737616434577,0.70188956,102280.0,102270.0,0.87076319]
[1737616434786,0.70188956,102280.0,102270.0,0.88192319]
[1737616435160,0.70188956,102280.0,102270.0,0.87076319]
[1737616435366,0.70188956,102280.0,102270.0,0.85892319]
[1737616436677,0.70088956,102280.0,102270.0,0.85922223]
[1737616438985,0.70088956,102280.0,102270.0,0.56974635]
[1737616439353,0.70088956,102280.0,102270.0,0.20522557]
[1737616439762,0.70088956,102280.0,102270.0,0.19542633]
[1737616441336,0.70088956,102280.0,102270.0,0.3058108]
[1737616441528,0.70088956,102280.0,102270.0,0.19542633]
[1737616441945,0.70088956,102280.0,102270.0,0.3058108]
[1737616442194,0.70088956,102280.0,102270.0,0.19542633]
[1737616442797,0.70088956,102280.0,102270.0,0.19642633]
[1737616443296,0.72088956,102280.0,102270.0,0.19642633]
[1737616446318,0.70088956,102280.0,102270.0,0.4568108]
[1737616446493,0.70088956,102280.0,102270.0,0.7072158]
[1737616447310,0.70088956,102280.0,102270.0,0.73763151]
[1737616448835,0.70088956,102280.0,102270.0,0.65861451]
[1737616449130,0.70088956,102280.0,102270.0,0.68529751]
[1737616449596,0.72088956,102280.0,102270.0,0.67970751]
[1737616449802,0.72088956,102280.0,102270.0,0.54690733]
[1737616450208,0.72088956,102280.0,102270.0,0.53298933]
[1737616451256,0.72088956,102280.0,102270.0,0.5634182]
[1737616452018,0.72088956,102280.0,102270.0,0.67245601]
[1737616452163,0.72088956,102280.0,102270.0,0.56207154]
[1737616452771,0.72088956,102280.0,102270.0,0.67245601]
[1737616452966,0.72088956,102280.0,102270.0,0.56207154]
[1737616453217,0.57538956,102280.0,102270.0,0.49389301]
[1737616453426,0.57538956,102280.0,102270.0,1.82814101]
[1737616453597,0.57538956,102280.0,102270.0,1.92442548]
[1737616453801,0.57538956,102280.0,102270.0,0.75462901]
[1737616454014,0.57538956,102280.0,102270.0,0.73261201]
[1737616456052,0.57538956,102280.0,102270.0,0.38350854]
[1737616456269,0.08229311,102280.0,102270.0,0.38350854]
[1737616456409,0.08303558,102280.0,102270.0,0.38350854]
[1737616456605,0.08303558,102280.0,102270.0,0.49389301]
[1737616456830,0.08229311,102280.0,102270.0,0.70347901]
[1737616460849,0.08229311,102280.0,102270.0,0.59309454]
[1737616461902,0.08229311,102280.0,102270.0,0.59190274]
[1737616462554,0.08303558,102280.0,102270.0,0.59068695]
[1737616463260,0.08303558,102280.0,102270.0,0.59022814]
[1737616463462,0.10303558,102280.0,102270.0,0.55401914]
[1737616463662,0.10229311,102280.0,102270.0,0.49102661]
[1737616464056,0.10229311,102280.0,102270.0,0.53374814]
[1737616464258,0.10229311,102280.0,102270.0,0.53678714]
[1737616464458,0.10229311,102280.0,102270.0,0.53678614]
[1737616466770,0.10303558,102280.0,102270.0,0.38064214]
[1737616467010,0.10303558,102280.0,102270.0,0.50718014]
[1737616467224,0.00029311,102280.0,102270.0,0.61756461]
[1737616467420,0.00029311,102280.0,102270.0,0.80674908]
[1737616467570,0.00029311,102280.0,102270.0,0.69636461]
[1737616468831,0.00029311,102280.0,102270.0,0.61756461]
[1737616469835,0.00029311,102280.0,102270.0,0.38064214]
[1737616470048,0.00029311,102280.0,102270.0,0.85234061]
[1737616475450,0.00029311,102280.0,102270.0,0.86250061]
[1737616476305,0.00029311,102280.0,102270.0,0.73622361]
[1737616476495,0.00103558,102280.0,102270.0,0.49316814]
[1737616476691,0.00103558,102280.0,102270.0,0.39080214]
[1737616477440,0.00103558,102280.0,102270.0,0.55465114]
[1737616477645,0.07653558,102280.0,102270.0,0.54449114]
[1737616478533,0.09653558,102280.0,102270.0,0.48273214]
[1737616479482,0.09653558,102280.0,102270.0,0.37664214]
[1737616480058,0.14363558,102280.0,102270.0,0.37664214]
[1737616480575,0.14289311,102280.0,102270.0,0.48702661]
[1737616482239,0.12289311,102280.0,102270.0,0.48702661]
[1737616482400,0.12363558,102280.0,102270.0,0.60430161]
[1737616487095,0.12363558,102280.0,102270.0,0.49391714]
[1737616487699,0.12363558,102280.0,102270.0,0.60430161]
[1737616488341,0.12363558,102280.0,102270.0,0.49391714]
[1737616490253,0.12363558,102280.0,102270.0,0.37664214]
[1737616490461,0.12363558,102280.0,102270.0,0.99181014]
[1737616490659,0.12363558,102280.0,102270.0,0.91631014]
[1737616490811,0.12363558,102280.0,102270.0,0.95488561]
[1737616491299,0.12363558,102280.0,102270.0,0.84450114]
[1737616492001,0.24140558,102280.0,102270.0,0.49794214]
[1737616492227,0.24140558,102280.0,102270.0,0.2308552]
[1737616492228,0.22066311,102280.0,102270.0,0.2308552]
[1737616492856,0.22066311,102280.0,102270.0,0.23039739]
[1737616493547,0.14289311,102280.0,102270.0,0.23039739]
[1737616493766,0.14289311,102280.0,102270.0,0.34078186]
[1737616493983,0.14289311,102280.0,102270.0,0.23039739]
[1737616497574,0.14363558,102280.0,102270.0,0.23039739]
[1737616503828,0.14289311,102280.0,102270.0,0.23039739]
[1737616506133,0.02029311,102280.0,102270.0,0.23039739]
[1737616506549,0.02103558,102280.0,102270.0,0.23039739]
[1737616509544,0.11880558,102280.0,102270.0,0.23039739]
[1737616511198,0.19530558,102280.0,102270.0,0.23039739]
[1737616513106,0.09753558,102280.0,102270.0,0.23039739]
[1737616513322,0.00029311,102280.0,102270.0,0.49078186]
[1737616513526,0.00029311,102280.0,102270.0,1.65432533]
[1737616513739,0.00029311,102280.0,102270.0,1.57795287]
[1737616514989,0.00029311,102280.0,102270.0,1.50575463]
[1737616515207,0.00029311,102280.0,102270.0,1.21997463]
[1737616515415,0.00029311,102280.0,102270.0,1.12791063]
[1737616515753,0.00029311,102280.0,102270.0,1.16575721]
[1737616516158,0.00029311,102280.0,102270.0,1.13531621]
[1737616518700,0.00029311,102280.0,102270.0,1.15530457]
[1737616522843,0.00029311,102280.0,102270.0,0.52575575]
[1737616523043,0.00029311,102280.0,102270.0,0.54625539]
[1737616523385,0.00029311,102280.0,102270.0,0.53661539]
[1737616523995,0.11880558,102280.0,102270.0,0.23039739]
[1737616524399,0.02103558,102280.0,102270.0,0.23039739]
[1737616525000,0.11880558,102280.0,102270.0,0.23039739]
[1737616525705,0.11880558,102280.0,102270.0,0.43208339]
[1737616525706,0.02103558,102280.0,102270.0,0.43208339]
[1737616525935,0.02029311,102280.0,102270.0,0.54212821]
[1737616527704,0.00029311,102280.0,102270.0,0.69212821]
[1737616527928,0.00029311,102280.0,102270.0,0.87997303]
[1737616528130,0.00029311,102280.0,102270.0,0.81642821]
[1737616528332,0.00029311,102280.0,102270.0,0.92647303]
[1737616529437,0.00029311,102280.0,102270.0,0.81642821]
[1737616531307,0.00029311,102280.0,102270.0,0.92647303]
[1737616531550,0.00029311,102280.0,102270.0,0.81642821]